[Event "FIDE WCCC Girls-10 2024"]
[Site "Montesilvano"]
[Date "2024.11.25"]
[Round "10.39"]
[White "Macakova, Bianka"]
[Black "Muradli, Sabira"]
[Result "1-0"]
[ECO "C32"]
[WhiteElo "1610"]
[BlackElo "1430"]
[Annotator "NA RC"]
[PlyCount "65"]
[EventDate "2024.11.18"]
[EventType "swiss"]
[EventCountry "ITA"]
[SourceTitle "playchess.com"]
[Source "ChessBase"]
[SourceQuality "1"]
[TimeControl "5400+30"]

1. e4 {[%emt 0:00:03]} e5 {[%emt 0:00:02]} 2. f4 {[%emt 0:00:11]} d5 {[%emt 0:00:04]} 3. exd5 {[%emt 0:00:25]} e4 {[%emt 0:00:05]} 4. d3 {[%emt 0:00:54]} Nf6 {[%emt 0:01:14]} 5. Nc3 {[%emt 0:10:15]} Bc5 {[%emt 0:01:04]} 6. dxe4 {[%emt 0:18:38]} Ng4 {[%emt 0:01:48]} 7. Nh3 {[%emt 0:02:37]} O-O {[%emt 0:01:09]} 8. Qf3 {[%emt 0:10:43]} Re8 {[%emt 0:01:00]} 9. Bd2 {[%emt 0:10:36]} Nf6 {[%emt 0:00:16]} 10. e5 {[%emt 0:09:09]} Bb4 {[%emt 0:00:36]} 11. Bc4 {[%emt 0:08:39]} Bf5 {[%emt 0:01:53]} 12. Nf2 {[%emt 0:08:28]} Bxc3 {[%emt 0:02:55]} 13. Bxc3 {[%emt 0:04:14]} Bxc2 {[%emt 0:01:49]} 14. O-O {[%emt 0:02:09]} Nfd7 {[%emt 0:00:13]} 15. e6 {[%emt 0:02:54]} Nb6 {[%emt 1:23:52]} 16. exf7+ {[%emt 0:02:00]} Kxf7 {[%emt 0:00:00]} 17. Qg4 {[%emt 0:02:02]} g6 {[%emt 0:00:00]} 18. Nh3 {[%emt 0:03:56]} Nxc4 {[%emt 0:00:00]} 19. f5 {[%emt 0:00:52]} Kg8 {[%emt 0:00:00]} 20. Qxc4 {[%emt 0:00:40]} Re4 {[%emt 0:00:00]} 21. Qc5 {[%emt 0:00:55]} Nd7 {[%emt 0:00:00]} 22. Qf2 {[%emt 0:00:22]} Bd3 {[%emt 0:00:00]} 23. fxg6 {[%emt 0:00:39]} Qf8 {[%emt 0:00:00]} 24. gxh7+ {[%emt 0:00:08]} Kxh7 {[%emt 0:00:00]} 25. Qxf8 {[%emt 0:00:51]} Nxf8 {[%emt 0:00:00]} 26. Ng5+ {[%emt 0:00:17]} Kg6 {[%emt 0:00:00]} 27. Nxe4 {[%emt 0:00:10]} Bxe4 {[%emt 0:00:00]} 28. Rf6+ {[%emt 0:00:40]} Kg5 {[%emt 0:00:00]} 29. Raf1 {[%emt 0:00:43]} Nd7 {[%emt 0:00:00]} 30. Bd2+ {[%emt 0:00:38]} Kh5 {[%emt 0:00:00]} 31. Rh6+ {[%emt 0:00:11]} Kg4 {[%emt 0:00:00]} 32. h3+ {[%emt 0:00:15]} Kg3 {[%emt 0:08:30]} 33. Bf4# {[%emt 0:00:05]} 1-0

[Event "FIDE WCCC Girls-10 2024"]
[Site "Montesilvano"]
[Date "2024.11.25"]
[Round "10.43"]
[White "Minasyan, Arina"]
[Black "Kocherha, Yelizavieta"]
[Result "1/2-1/2"]
[ECO "D11"]
[WhiteElo "1545"]
[BlackElo "1523"]
[Annotator "NA RC"]
[PlyCount "56"]
[EventDate "2024.11.18"]
[EventType "swiss"]
[EventCountry "ITA"]
[SourceTitle "playchess.com"]
[Source "ChessBase"]
[SourceQuality "1"]
[TimeControl "5400+30"]

1. d4 {[%emt 0:00:05]} d5 {[%emt 0:00:14]} 2. Nf3 {[%emt 0:00:04]} Nf6 {[%emt 0:00:24]} 3. c4 {[%emt 0:00:08]} c6 {[%emt 0:00:28]} 4. e3 {[%emt 0:00:10]} Bg4 {[%emt 0:00:41]} 5. h3 {[%emt 0:04:35]} Bh5 {[%emt 0:00:27]} 6. c5 {[%emt 0:07:41]} e6 {[%emt 0:02:27]} 7. Be2 {[%emt 0:04:00]} Nbd7 {[%emt 0:01:19]} 8. O-O {[%emt 0:02:17]} b6 {[%emt 0:04:50]} 9. b4 {[%emt 0:07:24]} a5 {[%emt 0:02:28]} 10. bxa5 {[%emt 0:12:51]} bxc5 {[%emt 0:02:48]} 11. dxc5 {[%emt 0:07:30]} Bxc5 {[%emt 0:00:39]} 12. Bd2 {[%emt 0:06:04]} O-O {[%emt 0:01:31]} 13. Nc3 {[%emt 0:04:09]} Bb4 {[%emt 0:04:57]} 14. a6 {[%emt 0:08:33]} Bxf3 {[%emt 0:01:03]} 15. Bxf3 {[%emt 0:03:22]} Rxa6 {[%emt 0:00:38]} 16. Qc2 {[%emt 0:04:28]} h6 {[%emt 0:03:12]} 17. Nxd5 {[%emt 0:04:02]} Bxd2 {[%emt 0:14:57]} 18. Nxf6+ {[%emt 0:00:14]} Nxf6 {[%emt 0:00:29]} 19. Rfd1 {[%emt 0:01:34]} Qc7 {[%emt 0:00:47]} 20. Rxd2 {[%emt 0:01:02]} c5 {[%emt 0:08:05]} 21. Rb1 {[%emt 0:04:03]} Rb6 {[%emt 0:01:19]} 22. Rxb6 {[%emt 0:03:21]} Qxb6 {[%emt 0:00:28]} 23. Rd3 {[%emt 0:00:30]} e5 {[%emt 0:03:47]} 24. Rb3 {[%emt 0:01:54]} Qa6 {[%emt 0:00:53]} 25. Be2 {[%emt 0:01:56]} Qc6 {[%emt 0:00:44]} 26. Rc3 {[%emt 0:02:52]} Rc8 {[%emt 0:00:49]} 27. Rc4 {[%emt 0:02:02]} e4 {[%emt 0:03:57]} 28. Ra4 {[%emt 0:02:27]} Rc7 {[%emt 0:03:02]} 1/2-1/2

[Event "FIDE WCCC Girls-10 2024"]
[Site "Montesilvano"]
[Date "2024.11.25"]
[Round "10.44"]
[White "Damaso Tacoronte, Carolina"]
[Black "Ritinioti, Sofia"]
[Result "1-0"]
[ECO "B08"]
[WhiteElo "1875"]
[BlackElo "1534"]
[Annotator "NA RC"]
[PlyCount "127"]
[EventDate "2024.11.18"]
[EventType "swiss"]
[EventCountry "ITA"]
[SourceTitle "playchess.com"]
[Source "ChessBase"]
[SourceQuality "1"]
[TimeControl "5400+30"]

1. e4 {[%emt 0:00:02]} d6 {[%emt 0:00:08]} 2. d4 {[%emt 0:00:05]} Nf6 {[%emt 0:00:11]} 3. Nc3 {[%emt 0:00:07]} g6 {[%emt 0:00:14]} 4. Nf3 {[%emt 0:00:22]} Bg7 {[%emt 0:00:24]} 5. Be3 {[%emt 0:00:13]} O-O {[%emt 0:00:35]} 6. Qd2 {[%emt 0:00:11]} c6 {[%emt 0:01:45]} 7. e5 {[%emt 0:03:14]} dxe5 {[%emt 0:01:04]} 8. Nxe5 {[%emt 0:00:15]} Nbd7 {[%emt 0:03:59]} 9. Nxd7 {[%emt 0:00:36]} Bxd7 {[%emt 0:00:49]} 10. h3 {[%emt 0:00:12]} h5 {[%emt 0:02:31]} 11. O-O-O {[%emt 0:00:43]} b5 {[%emt 0:01:08]} 12. Bh6 {[%emt 0:00:59]} Qa5 {[%emt 0:01:22]} 13. Kb1 {[%emt 0:01:49]} b4 {[%emt 0:01:55]} 14. Ne2 {[%emt 0:00:25]} Be6 {[%emt 0:02:21]} 15. b3 {[%emt 0:02:19]} Qa3 {[%emt 0:03:08]} 16. Bxg7 {[%emt 0:02:46]} Kxg7 {[%emt 0:00:40]} 17. f3 {[%emt 0:03:27]} a5 {[%emt 0:03:58]} 18. Qc1 {[%emt 0:03:10]} Qxc1+ {[%emt 0:01:07]} 19. Kxc1 {[%emt 0:00:55]} Nd5 {[%emt 0:01:37]} 20. g4 {[%emt 0:03:52]} h4 {[%emt 0:02:44]} 21. Kb1 {[%emt 0:00:56]} g5 {[%emt 0:01:50]} 22. Kb2 {[%emt 0:01:45]} Rac8 {[%emt 0:01:54]} 23. Rd3 {[%emt 0:03:24]} c5 {[%emt 0:02:01]} 24. dxc5 {[%emt 0:00:57]} Rxc5 {[%emt 0:00:39]} 25. Bg2 {[%emt 0:00:59]} Rfc8 {[%emt 0:01:39]} 26. Rc1 {[%emt 0:00:52]} Nc3 {[%emt 0:03:17]} 27. Nxc3 {[%emt 0:00:33]} Rxc3 {[%emt 0:01:10]} 28. Rxc3 {[%emt 0:00:32]} Rxc3 {[%emt 0:00:50]} 29. Rd1 {[%emt 0:00:27]} f5 {[%emt 0:01:50]} 30. Re1 {[%emt 0:02:08]} Kf6 {[%emt 0:01:21]} 31. a3 {[%emt 0:02:56]} f4 {[%emt 0:02:12]} 32. axb4 {[%emt 0:00:51]} axb4 {[%emt 0:00:30]} 33. Re4 {[%emt 0:00:32]} Bd5 {[%emt 0:01:07]} 34. Rxb4 {[%emt 0:00:25]} Re3 {[%emt 0:01:04]} 35. Rd4 {[%emt 0:01:52]} Bxf3 {[%emt 0:01:14]} 36. Bxf3 {[%emt 0:00:10]} Rxf3 {[%emt 0:00:26]} 37. c4 {[%emt 0:00:14]} Rxh3 {[%emt 0:01:12]} 38. c5 {[%emt 0:00:03]} f3 {[%emt 0:00:43]} 39. Rd2 {[%emt 0:00:47]} f2 {[%emt 0:06:50]} 40. Rxf2+ {[%emt 0:00:17]} Ke6 {[%emt 0:01:15]} 41. Rd2 {[%emt 0:00:05]} Re3 {[%emt 0:01:10]} 42. c6 {[%emt 0:00:16]} Re5 {[%emt 0:01:12]} 43. Rc2 {[%emt 0:00:27]} h3 {[%emt 0:03:55]} 44. c7 {[%emt 0:00:10]} h2 {[%emt 0:00:56]} 45. c8=Q+ {[%emt 1:05:40]} Kd5 {[%emt 0:02:53]} 46. Rxh2 {[%emt 0:00:00]} e6 {[%emt 0:00:40]} 47. Rd2+ {[%emt 0:00:00]} Ke4 {[%emt 0:00:36]} 48. Re2+ {[%emt 0:00:00]} Kf4 {[%emt 0:00:43]} 49. Qf8+ {[%emt 0:00:00]} Kg3 {[%emt 0:00:21]} 50. Rxe5 {[%emt 0:00:00]} Kxg4 {[%emt 0:00:33]} 51. Rxe6 {[%emt 0:00:00]} Kg3 {[%emt 0:00:11]} 52. Rg6 {[%emt 0:00:00]} Kg4 {[%emt 0:00:18]} 53. Rxg5+ {[%emt 0:00:00]} Kxg5 {[%emt 0:00:19]} 54. b4 {[%emt 0:00:00]} Kg6 {[%emt 0:00:16]} 55. b5 {[%emt 0:00:00]} Kg5 {[%emt 0:00:10]} 56. b6 {[%emt 0:00:00]} Kg6 {[%emt 0:00:17]} 57. b7 {[%emt 0:00:00]} Kg5 {[%emt 0:00:06]} 58. b8=Q {[%emt 0:00:00]} Kg4 {[%emt 0:00:10]} 59. Qb6 {[%emt 0:00:00]} Kg3 {[%emt 0:00:18]} 60. Qbf2+ {[%emt 0:00:00]} Kg4 {[%emt 0:00:16]} 61. Q8f4+ {[%emt 0:00:00]} Kh5 {[%emt 0:00:23]} 62. Q4g3 {[%emt 0:00:00]} Kh6 {[%emt 0:00:20]} 63. Qfg2 {[%emt 0:00:00]} Kh5 {[%emt 0:00:18]} 64. Qg5# {[%emt 0:00:00]} 1-0

[Event "FIDE WCCC Girls-10 2024"]
[Site "Montesilvano"]
[Date "2024.11.25"]
[Round "10.45"]
[White "Kovacikova, Simona"]
[Black "Babii, Oriiana"]
[Result "1-0"]
[ECO "B71"]
[WhiteElo "1412"]
[BlackElo "1481"]
[Annotator "NA RC"]
[PlyCount "33"]
[EventDate "2024.11.18"]
[EventType "swiss"]
[EventCountry "ITA"]
[SourceTitle "playchess.com"]
[Source "ChessBase"]
[SourceQuality "1"]
[TimeControl "5400+30"]

1. e4 {[%emt 0:00:03]} c5 {[%emt 0:00:23]} 2. Nf3 {[%emt 0:00:18]} d6 {[%emt 0:00:09]} 3. d4 {[%emt 0:00:05]} cxd4 {[%emt 0:00:16]} 4. Nxd4 {[%emt 0:00:06]} Nf6 {[%emt 0:00:17]} 5. Nc3 {[%emt 0:00:12]} g6 {[%emt 0:00:34]} 6. f4 {[%emt 0:00:20]} Bg7 {[%emt 0:00:32]} 7. e5 {[%emt 0:00:16]} dxe5 {[%emt 0:01:40]} 8. fxe5 {[%emt 0:00:27]} Nd5 {[%emt 0:03:29]} 9. Bb5+ {[%emt 0:01:08]} Kf8 {[%emt 0:05:04]} 10. Nxd5 {[%emt 0:08:00]} Qxd5 {[%emt 0:02:48]} 11. O-O {[%emt 0:19:54]} Bxe5 {[%emt 0:12:01]} 12. Be3 {[%emt 0:05:49]} Kg7 {[%emt 0:04:20]} 13. Nf5+ {[%emt 0:07:32]} Bxf5 {[%emt 0:04:52]} 14. Qxd5 {[%emt 0:00:38]} Bxb2 {[%emt 0:01:30]} 15. Bd4+ {[%emt 0:01:27]} Bxd4+ {[%emt 0:00:14]} 16. Qxd4+ {[%emt 0:00:09]} Kg8 {[%emt 0:00:23]} 17. Qd5 {[%emt 0:52:36]} 1-0

[Event "FIDE WCCC Girls-10 2024"]
[Site "Montesilvano"]
[Date "2024.11.25"]
[Round "10.47"]
[White "Ivanova, Darina"]
[Black "Deviatkova, Diana"]
[Result "1-0"]
[ECO "B56"]
[WhiteElo "1516"]
[BlackElo "1503"]
[Annotator "NA RC"]
[PlyCount "125"]
[EventDate "2024.11.18"]
[EventType "swiss"]
[EventCountry "ITA"]
[SourceTitle "playchess.com"]
[Source "ChessBase"]
[SourceQuality "1"]
[TimeControl "5400+30"]

1. e4 {[%emt 0:00:02]} c5 {[%emt 0:00:10]} 2. Nf3 {[%emt 0:00:07]} d6 {[%emt 0:00:13]} 3. d4 {[%emt 0:00:08]} cxd4 {[%emt 0:00:10]} 4. Nxd4 {[%emt 0:00:11]} e5 {[%emt 0:00:11]} 5. Nf3 {[%emt 0:00:10]} Nf6 {[%emt 0:00:13]} 6. Nc3 {[%emt 0:00:22]} Be6 {[%emt 0:01:42]} 7. Be2 {[%emt 0:02:00]} Be7 {[%emt 0:00:54]} 8. Be3 {[%emt 0:02:00]} Nc6 {[%emt 0:00:32]} 9. Ng5 {[%emt 0:02:00]} O-O {[%emt 0:01:58]} 10. Nxe6 {[%emt 0:02:00]} fxe6 {[%emt 0:00:21]} 11. Bc4 {[%emt 0:02:00]} Qd7 {[%emt 0:00:08]} 12. O-O {[%emt 0:02:00]} Rad8 {[%emt 0:00:55]} 13. Bg5 {[%emt 0:02:00]} d5 {[%emt 0:03:13]} 14. exd5 {[%emt 0:02:00]} exd5 {[%emt 0:00:09]} 15. Bxf6 {[%emt 0:02:02]} dxc4 {[%emt 0:02:03]} 16. Bxe7 {[%emt 0:02:28]} Qxe7 {[%emt 0:00:09]} 17. Qg4 {[%emt 0:00:31]} Rd4 {[%emt 0:06:24]} 18. Qe2 {[%emt 0:01:59]} a6 {[%emt 0:01:57]} 19. Rad1 {[%emt 0:02:00]} Rdf4 {[%emt 0:03:20]} 20. Nd5 {[%emt 0:00:30]} Qe8 {[%emt 0:01:41]} 21. Nxf4 {[%emt 0:00:10]} Rxf4 {[%emt 0:00:46]} 22. Rfe1 {[%emt 0:02:20]} Qf7 {[%emt 0:00:59]} 23. Rd6 {[%emt 0:01:30]} Qe7 {[%emt 0:01:18]} 24. Red1 {[%emt 0:00:53]} h6 {[%emt 0:01:12]} 25. g3 {[%emt 0:09:17]} Rf7 {[%emt 0:01:53]} 26. Qxc4 {[%emt 0:00:54]} Nd4 {[%emt 0:01:33]} 27. Qc8+ {[%emt 0:03:26]} Kh7 {[%emt 0:02:45]} 28. Rd8 {[%emt 0:01:11]} Qf6 {[%emt 0:05:10]} 29. Rh8+ {[%emt 0:00:38]} Kg6 {[%emt 0:00:26]} 30. Qg4+ {[%emt 0:00:18]} Qg5 {[%emt 0:00:12]} 31. Qxg5+ {[%emt 0:00:21]} Kxg5 {[%emt 0:00:09]} 32. f4+ {[%emt 0:00:33]} Kg4 {[%emt 0:01:33]} 33. fxe5 {[%emt 0:00:59]} Nf3+ {[%emt 0:01:44]} 34. Kg2 {[%emt 0:00:17]} Nxe5 {[%emt 0:00:11]} 35. Rd4+ {[%emt 0:00:27]} Kf5 {[%emt 0:00:30]} 36. Rf4+ {[%emt 0:00:14]} Ke6 {[%emt 0:00:24]} 37. Rxf7 {[%emt 0:00:09]} Nxf7 {[%emt 0:00:51]} 38. Rb8 {[%emt 0:00:36]} Nd6 {[%emt 0:00:12]} 39. b3 {[%emt 0:00:54]} Kd5 {[%emt 0:00:12]} 40. c4+ {[%emt 0:01:12]} Kc5 {[%emt 0:00:19]} 41. Rd8 {[%emt 0:00:30]} Nf5 {[%emt 0:00:25]} 42. Rd7 {[%emt 0:00:26]} Kc6 {[%emt 0:00:22]} 43. Rf7 {[%emt 0:00:17]} Ne3+ {[%emt 0:02:34]} 44. Kf3 {[%emt 0:00:08]} Nf1 {[%emt 0:01:30]} 45. Rxg7 {[%emt 0:00:27]} Nd2+ {[%emt 0:00:16]} 46. Ke2 {[%emt 0:00:12]} Ne4 {[%emt 0:00:24]} 47. Rg6+ {[%emt 0:00:18]} Kc7 {[%emt 0:02:49]} 48. Rxh6 {[%emt 0:00:12]} Nc3+ {[%emt 0:00:23]} 49. Kd3 {[%emt 0:00:49]} Nxa2 {[%emt 0:00:17]} 50. g4 {[%emt 0:00:20]} Nb4+ {[%emt 0:00:08]} 51. Kc3 {[%emt 0:00:10]} Nc6 {[%emt 0:00:23]} 52. g5 {[%emt 0:00:14]} Ne5 {[%emt 0:00:18]} 53. g6 {[%emt 0:00:13]} Ng4 {[%emt 0:00:17]} 54. Rh7+ {[%emt 0:00:36]} Kb6 {[%emt 0:00:19]} 55. g7 {[%emt 0:00:11]} Ka7 {[%emt 0:00:24]} 56. g8=Q {[%emt 0:00:18]} Nf6 {[%emt 0:00:19]} 57. Qg1+ {[%emt 0:00:12]} Kb8 {[%emt 0:00:13]} 58. Qg3+ {[%emt 0:00:33]} Ka7 {[%emt 0:00:13]} 59. Qe3+ {[%emt 0:00:10]} Kb8 {[%emt 0:00:19]} 60. Qe5+ {[%emt 0:00:10]} Ka7 {[%emt 0:00:43]} 61. Qc5+ {[%emt 0:00:30]} Kb8 {[%emt 0:00:13]} 62. Rh8+ {[%emt 0:00:16]} Ne8 {[%emt 0:00:14]} 63. Rxe8# {[%emt 0:00:09]} 1-0

[Event "FIDE WCCC Girls-10 2024"]
[Site "Montesilvano"]
[Date "2024.11.25"]
[Round "10.48"]
[White "Kiss, Villo"]
[Black "Gichuga Wanjiru Wanjiku"]
[Result "0-1"]
[ECO "D02"]
[WhiteElo "1492"]
[BlackElo "1436"]
[Annotator "NA RC"]
[PlyCount "82"]
[EventDate "2024.11.18"]
[EventType "swiss"]
[EventCountry "ITA"]
[SourceTitle "playchess.com"]
[Source "ChessBase"]
[SourceQuality "1"]
[TimeControl "5400+30"]

1. Nf3 {[%emt 0:00:05]} Nc6 {[%emt 0:00:00]} 2. d4 {[%emt 0:00:06]} d5 {[%emt 0:00:44]} 3. g3 {[%emt 0:00:11]} Bf5 {[%emt 0:00:41]} 4. Bg2 {[%emt 0:00:15]} Nb4 {[%emt 0:00:32]} 5. c4 {[%emt 0:00:16]} Nc2+ {[%emt 0:00:44]} 6. Kf1 {[%emt 0:00:09]} Nxa1 {[%emt 0:00:40]} 7. Nc3 {[%emt 0:14:23]} dxc4 {[%emt 0:01:53]} 8. Qa4+ {[%emt 0:01:51]} c6 {[%emt 0:00:35]} 9. Qxc4 {[%emt 0:01:08]} Nf6 {[%emt 0:00:58]} 10. Nd2 {[%emt 0:18:43]} e6 {[%emt 0:05:37]} 11. e4 {[%emt 0:01:15]} Bg6 {[%emt 0:02:14]} 12. Ne2 {[%emt 0:11:31]} Be7 {[%emt 0:03:02]} 13. Bf3 {[%emt 0:03:10]} O-O {[%emt 0:00:35]} 14. Kg2 {[%emt 0:00:02]} Bh5 {[%emt 0:16:48]} 15. Bxh5 {[%emt 0:01:18]} Nxh5 {[%emt 0:00:10]} 16. e5 {[%emt 0:00:17]} g6 {[%emt 0:05:09]} 17. b4 {[%emt 0:05:35]} a5 {[%emt 0:02:45]} 18. Bb2 {[%emt 0:06:14]} Bxb4 {[%emt 0:00:25]} 19. Ne4 {[%emt 0:00:35]} b5 {[%emt 0:00:47]} 20. Qd3 {[%emt 0:04:05]} Qd5 {[%emt 0:00:47]} 21. a3 {[%emt 0:06:36]} Be7 {[%emt 0:01:19]} 22. Rxa1 {[%emt 0:03:34]} f5 {[%emt 0:00:19]} 23. exf6 {[%emt 0:00:13]} Nxf6 {[%emt 0:01:19]} 24. f3 {[%emt 0:01:54]} c5 {[%emt 0:00:27]} 25. Rc1 {[%emt 0:03:29]} c4 {[%emt 0:00:14]} 26. Qe3 {[%emt 0:00:44]} b4 {[%emt 0:02:12]} 27. Nf4 {[%emt 0:00:52]} Qc6 {[%emt 0:00:47]} 28. Ng5 {[%emt 0:01:10]} Ng4 {[%emt 0:00:37]} 29. Qxe6+ {[%emt 0:00:21]} Qxe6 {[%emt 0:01:36]} 30. Ngxe6 {[%emt 0:01:35]} c3 {[%emt 0:06:27]} 31. Nxf8 {[%emt 0:00:40]} cxb2 {[%emt 0:00:24]} 32. Re1 {[%emt 0:01:49]} Ne3+ {[%emt 0:01:04]} 33. Kf2 {[%emt 0:01:08]} Nc4 {[%emt 0:00:33]} 34. a4 {[%emt 0:04:31]} Na3 {[%emt 0:00:14]} 35. Rxe7 {[%emt 0:03:14]} b1=Q {[%emt 0:00:24]} 36. N4e6 {[%emt 0:00:13]} Rxf8 {[%emt 0:00:41]} 37. Nxf8 {[%emt 0:00:58]} Kxf8 {[%emt 0:00:22]} 38. Re2 {[%emt 0:00:09]} b3 {[%emt 0:00:28]} 39. d5 {[%emt 0:00:14]} Qd3 {[%emt 0:00:15]} 40. Re3 {[%emt 0:01:56]} Qd2+ {[%emt 0:00:31]} 41. Re2 {[%emt 0:00:34]} Qxd5 {[%emt 0:00:10]} 0-1